bitfinex-derivatives/quotes_SOLF0:USTF0_20250224
["timestamp","ask_amount","ask_price","bid_price","bid_amount"]
[1740355920898,5.9135,169.1,169.09,0.04501424]
[1740355922906,5.9149,169.06,169.0,3.5193]
[1740355923708,5.9147,169.07,169.01,5.9164]
[1740355924209,0.03860414,169.05,169.01,0.0424815]
[1740355924402,190.96008636,169.14,169.03,24.16795273]
[1740355924712,1.7698,169.15,169.06,24.16795273]
[1740355925400,5.9121,169.14,169.06,24.16795273]
[1740355925600,0.04422559,169.12,169.09,0.04051991]
[1740355925998,0.04422559,169.12,169.07,5.9144]
[1740355926203,0.04422559,169.12,169.09,0.04201841]
[1740355926399,1.08702261,169.14,169.0,27.68725273]
[1740355926604,0.03921941,169.12,169.09,0.04198209]
[1740355926812,0.03921941,169.12,169.01,5.62075622]
[1740355927004,5.9129,169.12,169.09,0.04116029]
[1740355927205,0.03753999,169.08,169.06,5.9147]
[1740355927411,190.96008636,169.14,169.06,5.9147]
[1740355927610,0.04262349,169.09,169.06,5.9147]
[1740355928206,0.04262349,169.09,169.05,5.95753126]
[1740355928408,0.04262349,169.09,169.05,0.04243126]
[1740355928916,5.95652349,169.09,169.05,0.04243126]
[1740355932510,0.04262349,169.09,169.05,0.04243126]
[1740355932715,5.9144,169.08,169.05,0.04243126]
[1740355933007,0.04262349,169.09,169.05,0.04243126]
[1740355933213,5.95662349,169.09,169.05,0.04243126]
[1740355933713,5.9143,169.08,169.05,0.04243126]
[1740355934110,8.16,169.08,169.05,0.04243126]
[1740355934311,24.16795273,169.06,168.93,3.6712]
[1740355934515,24.16795273,169.06,168.93,1.8761]
[1740355934917,24.16795273,169.06,168.94,24.16795273]
[1740355935410,0.04545838,169.02,168.98,0.03994979]
[1740355935604,0.04545838,169.02,169.0,5.9167]
[1740355935809,0.04545838,169.02,168.98,0.03994979]
[1740355936617,0.04545838,169.02,169.01,5.9166]
[1740355936810,190.96008636,169.1,169.0,24.16795273]
[1740355937114,190.96008636,169.15,169.03,24.16795273]
[1740355937315,1.08702767,169.14,169.03,24.16795273]
[1740355937814,5.9132,169.11,169.03,24.16795273]
[1740355938018,0.03873985,169.1,169.07,0.04263455]
[1740355938412,0.03873985,169.1,169.09,5.9138]
[1740355939817,0.03873985,169.1,169.07,0.04263455]
[1740355939818,0.03873985,169.1,169.07,5.95683455]
[1740355940013,0.03873985,169.1,169.07,0.04263455]
[1740355943017,5.95223985,169.1,169.07,0.04263455]
[1740355943214,0.03873985,169.1,169.07,0.04263455]
[1740355943414,5.95233985,169.1,169.07,0.04263455]
[1740355943820,0.03873985,169.1,169.07,0.04263455]
[1740355944123,5.9142,169.08,169.07,0.04263455]
[1740355944723,0.03873985,169.1,169.07,0.04263455]
[1740355947121,0.03873985,169.1,169.07,5.95693455]
[1740355948023,0.03873985,169.1,169.07,0.04263455]
[1740355948722,0.03873985,169.1,169.07,5.95713455]
[1740355949118,0.03873985,169.1,169.07,0.04263455]
[1740355949522,1.08686625,169.2,169.08,24.16795273]
[1740355949823,1.08686625,169.2,169.09,1.7761]
[1740355950217,1.08686625,169.2,169.15,5.9116]
[1740355950616,0.04378353,169.19,169.16,0.04106613]
[1740355950825,0.04378353,169.19,169.17,5.9107]
[1740355951018,0.04378353,169.19,169.16,0.04106613]
[1740355954525,0.04378353,169.19,169.16,5.95216613]
[1740355956120,0.04378353,169.19,169.17,5.911]
[1740355959028,0.04378353,169.19,169.16,0.04106613]
[1740355959227,0.04378353,169.19,169.17,5.911]
[1740355960026,0.04378353,169.19,169.18,5.9107]
[1740355960825,0.04378353,169.19,169.16,0.04106613]
[1740355961730,5.95418353,169.19,169.16,0.04106613]
[1740355967433,5.9108,169.18,169.16,0.04106613]
[1740355974536,0.04378353,169.19,169.16,0.04106613]
[1740355975436,5.95428353,169.19,169.16,0.04106613]
[1740355975839,0.04378353,169.19,169.16,0.04106613]
[1740355976241,1.76878353,169.19,169.16,0.04106613]
[1740355976441,5.9117,169.16,169.11,5.913]
[1740355976743,1.725,169.19,169.07,15.10072653]
[1740355976951,1.725,169.19,169.1,5.9131]
[1740355977443,5.9118,169.15,169.13,0.04297244]
[1740355978145,0.03846005,169.16,169.13,0.04297244]
[1740355978946,5.9118,169.15,169.13,0.04297244]
[1740355979150,0.03846005,169.16,169.13,0.04297244]
[1740355979649,190.96008636,169.3,169.15,15.10072653]
[1740355979952,5.908,169.26,169.15,15.10072653]
[1740355980146,1.7233,169.27,169.15,15.10072653]
[1740355980346,1.08626709,169.26,169.16,5.62730984]
[1740355980543,5.9085,169.25,169.15,15.10072653]
[1740355980748,0.04413754,169.22,169.19,0.04014992]
[1740355981949,0.04413754,169.22,169.19,5.95024992]
[1740355982446,0.04413754,169.22,169.21,5.9096]
[1740355983257,0.04413754,169.22,169.21,21.01032653]
[1740355983552,192.75538636,169.3,169.24,5.9083]
[1740355983553,6.99297588,169.29,169.24,5.9083]
[1740355983757,6.99297588,169.29,169.21,15.10072653]
[1740355983758,18.76712653,169.32,169.21,15.10072653]
[1740355984058,5.9066,169.3,169.24,5.9086]
[1740355984260,16.87132653,169.32,169.21,15.10072653]
[1740355984457,1.7706,169.32,169.24,15.10072653]
[1740355984761,0.04227698,169.3,169.26,0.04262006]
[1740355985162,15.10072653,169.29,169.26,0.04262006]
[1740355985555,5.9076,169.27,169.26,0.04262006]
[1740355987062,5.9088,169.24,169.18,15.10072653]
[1740355987261,16.90012653,169.29,169.18,15.10072653]
[1740355987462,15.10072653,169.26,169.15,15.10072653]
[1740355987657,5.9096,169.22,169.14,5.62887456]
[1740355987853,24.15039035,169.26,169.14,5.62887456]
[1740355988066,1.08635008,169.25,169.14,5.62887456]
[1740355988263,5.9522909,169.22,169.18,0.03898388]
[1740355988963,0.0428909,169.22,169.18,0.03898388]
[1740355989460,5.9521909,169.22,169.18,0.03898388]
[1740355989755,0.0428909,169.22,169.18,0.03898388]
[1740355989962,5.9103,169.19,169.18,0.03898388]
[1740355992360,5.9099,169.21,169.18,0.03898388]
[1740355992960,5.91,169.2,169.18,0.03898388]
[1740355993361,0.0428909,169.22,169.18,0.03898388]
[1740355993563,1.12940907,169.22,169.18,0.03898388]
[1740355994361,0.0428909,169.22,169.18,0.03898388]
[1740355994957,1.12939712,169.22,169.18,0.03898388]
[1740355995359,5.91,169.2,169.18,0.03898388]
[1740355996461,0.0428909,169.22,169.18,0.03898388]
[1740355996666,1.1294005,169.22,169.18,0.03898388]
[1740355997063,0.0428909,169.22,169.18,0.03898388]
[1740355997461,5.9521909,169.22,169.18,0.03898388]
[1740355997662,0.0428909,169.22,169.18,0.03898388]
[1740355998765,5.9521909,169.22,169.18,0.03898388]
[1740356007663,15.10091487,169.21,169.18,0.03898388]
[1740356008174,21.01061487,169.21,169.18,0.03898388]
[1740356009473,0.0428909,169.22,169.18,0.03898388]
[1740356011174,0.0428909,169.22,169.2,5.9098]
[1740356012776,5.9522909,169.22,169.18,5.94958388]
[1740356013477,0.0428909,169.22,169.18,5.94958388]
[1740356013677,0.0428909,169.22,169.19,5.9102]
[1740356014474,206.06100123,169.32,169.18,15.13989875]
[1740356014679,1.08599251,169.31,169.21,15.10091487]
[1740356014871,0.69842752,169.34,169.24,15.10091487]
[1740356015076,1.08588492,169.33,169.28,5.9071]
[1740356015375,245.23042526,169.35,169.28,5.9071]
[1740356015576,0.04346602,169.33,169.3,0.04366341]
[1740356016881,1.12924816,169.33,169.3,0.04366341]
[1740356017179,0.04346602,169.33,169.3,0.04366341]
[1740356017680,1.12926282,169.33,169.3,0.04366341]
[1740356018276,0.04346602,169.33,169.3,0.04366341]
[1740356018480,5.94906602,169.33,169.3,0.04366341]
[1740356018674,0.04346602,169.33,169.3,0.04366341]
[1740356021678,0.04346602,169.33,169.3,5.95016341]
[1740356022276,0.04346602,169.33,169.32,5.9058]
[1740356022980,5.3351,169.42,169.32,5.93183647]
[1740356023181,1.08529189,169.41,169.33,5.9314426]
[1740356023479,1.08529189,169.41,169.31,9.49165632]
[1740356023779,26.33861487,169.42,169.35,5.9045]
[1740356023978,1.08527222,169.41,169.32,15.10091487]
[1740356024181,1.08527222,169.41,169.37,0.0425937]
[1740356024182,0.03743572,169.4,169.37,0.0425937]
[1740356029181,5.94073572,169.4,169.37,0.0425937]
[1740356029384,0.03743572,169.4,169.37,0.0425937]
[1740356030483,5.9037,169.38,169.37,0.0425937]
[1740356032285,1.08543242,169.38,169.29,9.3845]
[1740356032678,1.08543242,169.38,169.29,3.4779]
[1740356032880,1.08543242,169.38,169.28,15.10091487]
[1740356032881,5.9059,169.32,169.27,5.9074]
[1740356033385,5.9059,169.32,169.28,0.03875244]
[1740356033386,0.04069919,169.31,169.28,0.03875244]
[1740356036786,0.04069919,169.31,169.28,5.94595244]
[1740356038485,0.04069919,169.31,169.29,5.9068]
[1740356039381,0.04069919,169.31,169.28,0.03875244]
[1740356039687,1.7534,169.4,169.3,15.10091487]
[1740356039892,196.86298636,169.41,169.36,5.9041]
[1740356040082,1.08536001,169.4,169.36,5.9041]
[1740356040582,0.03749666,169.4,169.36,5.94513335]
[1740356040886,0.03749666,169.4,169.36,0.04103335]
[1740356044483,0.03749666,169.4,169.39,5.9034]
[1740356045290,1.08530359,169.45,169.41,5.9025]
[1740356045489,1.08530359,169.46,169.41,5.9025]
[1740356045782,1.08530359,169.45,169.41,5.9025]
[1740356045984,1.08530359,169.44,169.4,5.9029]
[1740356046179,1.08530359,169.43,169.4,5.9029]
[1740356046377,0.0421476,169.44,169.4,5.94361314]
[1740356047384,0.0421476,169.44,169.4,0.04071314]
[1740356048288,1.12733816,169.44,169.4,0.04071314]
[1740356048494,0.0421476,169.44,169.4,0.04071314]
[1740356049685,0.0421476,169.44,169.4,5.94371314]
[1740356050591,0.0421476,169.44,169.42,5.902]
[1740356050893,0.0421476,169.44,169.42,15.10091487]
[1740356051087,0.0421476,169.44,169.43,5.902]
[1740356051488,1.08488503,169.5,169.42,15.10091487]
[1740356051784,5.8981,169.55,169.49,5.8999]
[1740356051989,1.08456874,169.54,169.47,15.10091487]
[1740356052193,245.23042526,169.57,169.47,15.10091487]
[1740356052493,350.05481522,169.58,169.47,15.10091487]
[1740356052494,1.08444565,169.56,169.47,15.10091487]
[1740356052789,0.02262236,169.54,169.5,5.94382494]
[1740356052990,0.02262236,169.54,169.5,0.04462494]
[1740356053193,1.10706801,169.54,169.5,5.94412494]
[1740356053487,0.02262236,169.54,169.5,5.94412494]
[1740356053693,0.02262236,169.54,169.5,0.04462494]
[1740356053890,0.02262236,169.54,169.5,5.94412494]
[1740356054387,0.02262236,169.54,169.53,20.99941487]
[1740356054584,245.23042526,169.58,169.53,15.10091487]
[1740356055395,245.23042526,169.58,169.56,5.8973]
[1740356055695,1.7643,169.65,169.54,0.04355019]
[1740356055892,16.18502539,169.64,169.54,0.04355019]
[1740356056092,1.08411052,169.63,169.53,15.10091487]
[1740356056396,15.10091487,169.61,169.57,0.04081771]
[1740356056896,1.08411052,169.6,169.57,0.04081771]
[1740356057097,6.98021052,169.6,169.57,0.04081771]
[1740356057286,1.08411052,169.59,169.57,0.04081771]
[1740356057792,22.08182539,169.58,169.57,0.04081771]
[1740356058496,1.08411052,169.58,169.57,0.04081771]
[1740356058692,15.10091487,169.61,169.57,0.04081771]
[1740356058693,1.08411052,169.6,169.57,0.04081771]
[1740356058997,15.10091487,169.61,169.57,0.04081771]
[1740356059193,1.08416289,169.6,169.57,0.04081771]
[1740356059490,15.10091487,169.58,169.49,15.10091487]
[1740356059692,1.08416289,169.57,169.47,1.7523]
[1740356059886,15.10091487,169.55,169.48,5.87273653]
[1740356060086,15.10091487,169.55,169.43,22.17971113]
[1740356060087,1.08438814,169.54,169.43,15.10091487]
[1740356060296,1.08438814,169.54,169.44,15.27496883]
[1740356060485,1.08438814,169.54,169.45,5.87498801]
[1740356060691,0.04081771,169.51,169.47,0.04286591]
[1740356062197,0.04081771,169.51,169.47,5.94316591]
[1740356062497,0.04081771,169.51,169.47,0.04286591]
[1740356063192,0.04081771,169.51,169.47,5.94316591]
[1740356063891,0.04081771,169.51,169.47,0.04286591]
[1740356064292,5.8996,169.5,169.47,0.04286591]
[1740356064496,0.04081771,169.51,169.47,0.04286591]
[1740356064893,5.9002,169.48,169.47,0.04286591]
[1740356066197,5.9,169.49,169.47,0.04286591]
[1740356066398,0.04081771,169.51,169.47,0.04286591]
[1740356066598,1.12546758,169.51,169.47,0.04286591]
[1740356067092,0.04081771,169.51,169.47,0.04286591]
[1740356067291,5.8996,169.5,169.47,0.04286591]
[1740356067492,0.04081771,169.51,169.47,0.04286591]
[1740356068387,5.8997,169.5,169.47,0.04286591]
[1740356069395,0.04081771,169.51,169.47,0.04286591]
[1740356069596,1.08435326,169.55,169.5,24.07832668]
[1740356069899,5.4094,169.67,169.51,3.7258]
[1740356070093,1.08413837,169.65,169.56,5.8974]
[1740356070293,1.08413837,169.65,169.51,3.7258]
[1740356070694,5.8951,169.63,169.56,5.94097364]
[1740356070895,1.08413837,169.62,169.56,5.94097364]
[1740356071096,1.08413837,169.62,169.56,0.04377364]
[1740356071296,1.08413837,169.61,169.56,0.04377364]
[1740356071497,8.32788473,169.66,169.56,0.04377364]
[1740356071692,25.16233802,169.65,169.56,0.04377364]
[1740356071899,1.08401134,169.64,169.56,0.04377364]
[1740356072099,5.8951,169.63,169.56,5.94097364]
[1740356072298,1.08401134,169.62,169.56,0.04377364]
[1740356073304,1.0839911,169.61,169.57,5.8971]
[1740356073507,24.07832668,169.65,169.56,0.04377364]
[1740356073699,5.8951,169.63,169.56,0.04377364]
[1740356073901,1.08399674,169.62,169.57,5.8969]
[1740356074406,1.08399674,169.62,169.56,0.04377364]
[1740356074604,1.08387603,169.65,169.56,0.04377364]
[1740356074806,1.0838531,169.64,169.56,24.12210032]
[1740356074999,0.32788473,169.66,169.6,5.8958]
[1740356075306,1.0838531,169.65,169.61,0.04147855]
[1740356075506,0.32788473,169.66,169.61,0.04147855]
[1740356075708,0.32788473,169.66,169.63,5.8949]
[1740356076304,0.32788473,169.66,169.62,5.8953]
[1740356076706,0.32788473,169.66,169.61,0.04147855]
[1740356077105,0.32788473,169.66,169.61,5.93697855]
[1740356077306,1.08374884,169.65,169.61,5.93697855]
[1740356078103,0.32788473,169.66,169.61,0.04147855]
[1740356078304,1.08373749,169.65,169.61,0.04147855]
[1740356078505,5.8947,169.64,169.61,0.04147855]
[1740356079512,6.22198473,169.66,169.61,0.04147855]
[1740356079812,1.08376213,169.65,169.61,0.04147855]
[1740356080110,6.22198473,169.66,169.61,0.04147855]
[1740356080312,1.08374668,169.65,169.61,0.04147855]
[1740356081913,6.22198473,169.66,169.61,0.04147855]
[1740356082309,0.32788473,169.66,169.61,0.04147855]
[1740356083618,0.32788473,169.66,169.63,5.8949]
[1740356083815,0.32788473,169.66,169.61,0.04147855]
[1740356084216,0.32788473,169.66,169.65,5.8943]
[1740356084416,0.32788473,169.66,169.61,0.04147855]
[1740356085511,0.32788473,169.66,169.63,5.8948]
[1740356088416,0.32788473,169.66,169.61,0.04147855]
[1740356088614,0.32788473,169.66,169.64,5.8946]
[1740356091314,0.32788473,169.66,169.61,0.04147855]
[1740356091519,0.32788473,169.66,169.63,5.8948]
[1740356093915,0.32788473,169.66,169.64,5.8946]
[1740356094319,0.32788473,169.66,169.61,0.04147855]
[1740356094522,0.32788473,169.66,169.63,5.8948]
[1740356094912,0.32788473,169.66,169.61,0.04147855]
[1740356095117,0.32788473,169.66,169.63,5.8949]
[1740356096323,6.22208473,169.66,169.61,0.04147855]
[1740356096518,1.08370387,169.65,169.61,0.04147855]
[1740356096720,16.09665664,169.65,169.61,0.04147855]
[1740356096916,1.08370387,169.64,169.61,0.04147855]
[1740356099323,9.08370387,169.64,169.51,15.01295277]
[1740356099522,9.08370387,169.64,169.6,5.8957]
[1740356099523,1.0839046,169.63,169.6,5.8957]
[1740356099727,8.0,169.64,169.6,5.8957]
[1740356100321,0.04147855,169.64,169.62,5.8951]
[1740356100525,0.04147855,169.64,169.6,0.03913918]
[1740356101429,0.04147855,169.64,169.63,5.895]
[1740356104333,138.7786,169.8,169.6,15.05209195]
[1740356104334,15.01295277,169.77,169.62,15.01295277]
[1740356104537,5.8915,169.74,169.66,15.01295277]
[1740356104740,15.01295277,169.78,169.66,15.01295277]
[1740356105031,1.08320311,169.77,169.66,15.01295277]
[1740356105236,15.01295277,169.75,169.66,15.01295277]
[1740356105427,1.08320311,169.74,169.69,0.03757524]
[1740356105634,5.8921,169.72,169.69,0.03757524]
[1740356105829,15.01295277,169.75,169.69,0.03757524]
[1740356106033,1.08320632,169.74,169.69,0.03757524]
[1740356107935,1.08331247,169.73,169.69,0.03757524]
[1740356108232,1.08331247,169.72,169.69,0.03757524]
[1740356108432,5.8927,169.7,169.63,5.895]
[1740356109028,5.8927,169.7,169.6,15.01295277]
[1740356109228,5.8927,169.7,169.63,5.895]
[1740356109434,5.8927,169.7,169.65,0.04076951]
[1740356109634,5.93027858,169.68,169.65,0.04076951]
[1740356110639,0.03667858,169.68,169.65,0.04076951]
[1740356110833,5.8938,169.67,169.65,0.04076951]
[1740356111035,0.03667858,169.68,169.65,0.04076951]
[1740356111236,7.01385923,169.68,169.65,0.04076951]
[1740356111634,5.93027858,169.68,169.65,0.04076951]
[1740356113631,7.81377858,169.68,169.65,0.04076951]
[1740356114133,5.8937,169.67,169.65,0.04076951]
[1740356114337,5.8937,169.67,169.62,5.8952]
[1740356115740,5.8937,169.67,169.63,0.03852578]
[1740356120342,5.8941,169.66,169.63,0.03852578]
[1740356121744,5.8945,169.65,169.63,0.03852578]
[1740356122942,15.01295277,169.66,169.63,0.03852578]
[1740356123138,5.8952,169.63,169.55,9.64300812]
[1740356123347,20.90815277,169.63,169.56,5.64898218]
[1740356123544,20.90815277,169.63,169.57,5.64898218]
[1740356123745,20.90815277,169.63,169.57,5.8969]
[1740356123939,5.8957,169.61,169.54,15.01295277]
[1740356124143,5.8957,169.61,169.55,5.6542789]
[1740356124344,0.04206774,169.59,169.56,11.59017995]
[1740356124543,0.04206774,169.59,169.56,5.93590105]
[1740356124742,0.04206774,169.59,169.56,0.03870105]
[1740356127348,0.04206774,169.59,169.56,15.05165382]
[1740356128147,0.04206774,169.59,169.58,5.8968]
[1740356129545,0.04206774,169.59,169.56,0.03870105]
[1740356129747,0.04206774,169.59,169.57,5.897]
[1740356130745,0.04206774,169.59,169.56,0.03870105]
[1740356133450,5.8968,169.58,169.56,0.03870105]
[1740356133647,0.04206774,169.59,169.56,0.03870105]
[1740356134049,0.04206774,169.59,169.58,5.8968]
[1740356134446,0.04206774,169.59,169.56,3.61380105]
[1740356134650,0.04206774,169.59,169.56,9.51120105]
[1740356135049,0.04206774,169.59,169.58,5.8968]
[1740356136549,0.04206774,169.59,169.57,5.897]
[1740356136753,0.04206774,169.59,169.56,3.61380105]
[1740356137252,0.04206774,169.59,169.58,5.8968]
[1740356139246,0.04206774,169.59,169.58,11.35689917]
[1740356139453,0.04206774,169.59,169.58,5.8968]
[1740356141754,0.04206774,169.59,169.56,3.61380105]
[1740356141952,0.04206774,169.59,169.56,0.03870105]
[1740356142656,5.93846774,169.59,169.56,0.03870105]
[1740356142857,0.04206774,169.59,169.56,0.03870105]
[1740356143258,20.90985277,169.58,169.56,0.03870105]
[1740356143851,15.01295277,169.58,169.56,0.03870105]
[1740356147561,15.01295277,169.58,169.47,20.20325277]
[1740356147562,5.8984,169.54,169.47,5.9003]
[1740356147762,15.01295277,169.54,169.48,5.4689841]
[1740356147960,15.01295277,169.54,169.44,15.01295277]
[1740356148159,15.01295277,169.54,169.45,9.46596212]
[1740356148363,15.01295277,169.54,169.47,5.9003]
[1740356148662,0.04399785,169.52,169.49,0.04324979]
[1740356148860,15.01295277,169.51,169.49,0.04324979]
[1740356149366,15.01295277,169.51,169.42,3.6042]
[1740356149564,23.01295277,169.51,169.42,3.6042]
[1740356149764,15.01295277,169.48,169.42,3.6042]
[1740356150367,15.01295277,169.48,169.4,1.757]
[1740356150564,0.03862226,169.47,169.43,0.04005717]
[1740356153763,15.05157503,169.47,169.43,0.04005717]
[1740356154660,1.8062,169.46,169.43,0.04005717]
[1740356155657,15.01295277,169.44,169.43,0.04005717]
[1740356157964,15.01295277,169.44,169.4,5.9029]
[1740356158663,15.01295277,169.46,169.35,18.58155277]
[1740356158864,0.03862226,169.47,169.38,15.01295277]
[1740356159068,0.04362923,169.42,169.39,0.04140313]
[1740356159470,0.04359696,169.42,169.4,15.01295277]
[1740356159665,18.65755277,169.59,169.41,16.72795277]
[1740356159866,1.08430606,169.58,169.49,15.01295277]
[1740356160170,1.08430606,169.58,169.54,5.8981]
[1740356160663,18.65755277,169.59,169.54,5.8981]
[1740356160866,0.04058461,169.58,169.54,5.94089354]
[1740356161067,1.12471481,169.58,169.54,0.04279354]
[1740356162969,0.04058461,169.58,169.54,0.04279354]
[1740356167871,0.04058461,169.58,169.54,5.94089354]
[1740356170574,0.04058461,169.58,169.54,0.04279354]
[1740356170775,24.09336165,169.58,169.54,0.04279354]
[1740356170972,1.08422185,169.57,169.54,0.04279354]
[1740356171276,5.8978,169.55,169.54,0.04279354]
[1740356171472,5.8978,169.55,169.49,5.8998]
[1740356171876,5.4461,169.57,169.43,24.05277704]
[1740356172175,5.8982,169.54,169.47,5.9004]
[1740356172575,0.04220954,169.52,169.49,0.03965006]
[1740356174874,24.09498658,169.52,169.49,0.03965006]
[1740356175079,5.8992,169.51,169.49,0.03965006]
[1740356176081,1.08469761,169.5,169.49,0.03965006]
[1740356176578,6.98419761,169.5,169.49,0.03965006]
[1740356176875,1.08469761,169.5,169.49,0.03965006]
[1740356177182,6.98419761,169.51,169.49,0.03965006]
[1740356177377,1.08469761,169.5,169.49,0.03965006]
[1740356177573,1.08469761,169.5,169.38,1.8799]
[1740356177779,5.9008,169.47,169.4,5.9028]
[1740356178081,24.05277704,169.49,169.38,1.8799]
[1740356178384,24.05277704,169.49,169.39,5.9033]
[1740356178385,5.9016,169.45,169.39,5.9033]
[1740356178685,0.03976656,169.44,169.4,0.04097643]
[1740356180684,5.94166656,169.44,169.4,0.04097643]
[1740356181687,21.00141912,169.44,169.4,0.04097643]
[1740356182978,15.05975256,169.41,169.32,3.7433]
[1740356183278,15.05975256,169.41,169.3,92.64913614]
[1740356183481,20.96365256,169.38,169.31,5.9061]
[1740356183884,15.05975256,169.38,169.27,15.05975256]
[1740356184086,5.9045,169.36,169.28,5.9069]
[1740356184277,0.0426178,169.34,169.31,0.03854111]
[1740356187283,15.05975256,169.33,169.31,0.03854111]
[1740356187484,5.9058,169.32,169.31,0.03854111]
[1740356187685,5.9058,169.32,169.24,5.9085]
[1740356187873,15.05975256,169.3,169.24,5.9085]
[1740356188883,0.03990572,169.29,169.25,0.04202292]
[1740356189688,0.03990572,169.29,169.26,5.9076]
[1740356189881,0.03990572,169.29,169.25,0.04202292]
[1740356190282,0.03990572,169.29,169.26,5.9076]
[1740356190584,0.03990572,169.29,169.25,0.04202292]
[1740356191381,20.96735256,169.27,169.25,0.04202292]
[1740356191586,15.05975256,169.27,169.25,0.04202292]
[1740356192183,0.03990572,169.29,169.25,0.04202292]
[1740356192686,0.03990572,169.29,169.26,5.9079]
[1740356194390,0.03990572,169.29,169.28,5.9072]
[1740356194595,15.05975256,169.44,169.27,15.05975256]
[1740356194596,15.05975256,169.38,169.27,15.05975256]
[1740356194797,162.52,169.39,169.29,15.05975256]
[1740356194999,1.08550296,169.38,169.31,15.05975256]
[1740356195198,1.08550296,169.38,169.3,1.8041]
[1740356195199,154.62,169.5,169.34,15.05975256]
[1740356195398,15.05975256,169.46,169.34,15.05975256]
[1740356195593,1.08518531,169.45,169.32,1.8272]
[1740356195798,0.03949794,169.42,169.38,0.03826086]
[1740356196301,1.12468325,169.42,169.38,0.03826086]
[1740356196502,15.05975256,169.4,169.38,0.03826086]
[1740356196697,1.08532447,169.39,169.38,0.03826086]
[1740356196898,1.08532971,169.39,169.38,0.03826086]
[1740356198002,1.08532971,169.39,169.34,5.9051]
[1740356199000,1.08532971,169.39,169.3,1.8041]
[1740356199204,0.04109761,169.38,169.35,0.04193088]
[1740356200501,0.04109761,169.38,169.36,5.9044]
[1740356205702,0.04109761,169.38,169.35,0.04193088]
[1740356205703,0.04109761,169.38,169.37,5.9041]
[1740356205907,1.08508576,169.44,169.36,1.7131]
[1740356206201,1.08508576,169.44,169.4,5.9028]
[1740356206608,1.08508576,169.44,169.36,1.7131]
[1740356206797,7.6279,169.47,169.41,5.9024]
[1740356206997,1.08492555,169.46,169.42,0.04403657]
[1740356207203,1.12980085,169.46,169.42,0.04403657]
[1740356207503,1.08495047,169.45,169.42,0.04403657]
[1740356207707,0.0448753,169.46,169.42,0.04403657]
[1740356207904,1.12982578,169.46,169.42,0.04403657]
[1740356208898,1.12982578,169.46,169.42,5.94623657]
[1740356209104,0.0448753,169.46,169.42,5.94623657]
[1740356209505,0.0448753,169.46,169.43,5.902]
[1740356209807,0.0448753,169.46,169.42,0.04403657]
[1740356210609,23.05975256,169.55,169.43,15.05975256]
[1740356210910,23.05975256,169.55,169.49,5.8998]
[1740356210911,1.08444623,169.54,169.49,5.8998]
[1740356211207,23.05975256,169.55,169.46,15.05975256]
[1740356211404,1.08438311,169.54,169.46,15.05975256]
[1740356211605,15.05975256,169.55,169.46,15.05975256]
[1740356211911,0.04186307,169.52,169.48,0.03958434]
[1740356212410,0.04186307,169.52,169.5,5.8994]
[1740356212808,0.04186307,169.52,169.48,0.03958434]
[1740356215317,0.04186307,169.52,169.48,5.93958434]
[1740356217216,0.04186307,169.52,169.48,0.03958434]
[1740356217413,15.10161563,169.52,169.48,0.03958434]
[1740356217910,5.8998,169.5,169.48,0.03958434]
[1740356218311,5.8999,169.49,169.48,0.03958434]
[1740356218618,15.10161563,169.52,169.48,0.03958434]
[1740356218817,1.08461663,169.51,169.48,0.03958434]
[1740356219017,5.8996,169.5,169.48,0.03958434]
[1740356220108,15.10161563,169.52,169.48,0.03958434]
[1740356220308,0.04186307,169.52,169.48,0.03958434]
[1740356220712,15.10161563,169.52,169.48,0.03958434]
[1740356221113,1.08456377,169.51,169.48,0.03958434]
[1740356221310,15.10161563,169.52,169.48,0.03958434]
[1740356221515,15.05975256,169.49,169.48,0.03958434]
[1740356221715,20.95965256,169.49,169.48,0.03958434]
[1740356221914,15.05975256,169.49,169.48,0.03958434]
[1740356222122,13.4926,169.51,169.48,0.03958434]
[1740356222324,1.08464133,169.5,169.48,0.03958434]
[1740356223121,15.05975256,169.49,169.48,0.03958434]
[1740356223327,16.14447544,169.49,169.48,0.03958434]
[1740356223519,22.04437544,169.49,169.48,0.03958434]
[1740356224121,16.14447544,169.49,169.39,3.4995]
[1740356224323,15.05975256,169.49,169.39,3.4995]
[1740356225021,15.05975256,169.46,169.39,3.4995]
[1740356225223,15.05975256,169.46,169.34,15.05975256]
[1740356225525,0.0422942,169.44,169.41,0.04495172]
[1740356226321,15.05975256,169.43,169.41,0.04495172]
[1740356226525,20.96175256,169.43,169.41,0.04495172]
[1740356227326,5.9023,169.42,169.41,0.04495172]
[1740356227926,5.9034,169.39,169.3,5.5514]
[1740356228728,5.9034,169.39,169.31,5.9061]
[1740356228925,5.9034,169.39,169.3,5.5514]
[1740356229131,0.04248029,169.37,169.33,0.03891071]
[1740356229828,0.04248029,169.37,169.34,5.905]
[1740356230130,0.04248029,169.37,169.33,0.03891071]